fUSD/lending_fUSD_20240205
["ID","MTS","AMOUNT","RATE_DAILY","PERIOD"]
[313293600,1707095481036,-1039.15,0.00048219,31]
[313293601,1707095481045,-1000.0,0.00048219,70]
[313293602,1707095481054,-1000.0,0.00048219,30]
[313293603,1707095481064,-500.0,0.00048219,31]
[313293604,1707095481073,-1171.17,0.00048219,31]
[313293605,1707095481083,-883.87,0.00048219,31]
[313293606,1707095481092,-828.79,0.00048219,7]
[313293607,1707095481105,-623.3,0.00048219,31]
[313293608,1707095481115,-500.0,0.00048219,31]
[313293609,1707095481126,-500.0,0.00048219,31]
[313293610,1707095481137,-3906.28,0.00048219,31]
[313293611,1707095481147,-500.0,0.00048219,31]
[313293612,1707095481158,-500.0,0.00048219,31]
[313293613,1707095481169,-3442.61,0.00048219,31]
[313293614,1707095481180,-500.0,0.00048219,31]
[313293615,1707095481191,-543.10281995,0.00048219,31]
[313293616,1707095481204,-1766.17,0.00048219,5]
[313293617,1707095481215,-500.0,0.00048219,31]
[313293618,1707095481226,-717.49,0.00048219,31]
[313293619,1707095481237,-2896.55,0.00048219,31]
[313293620,1707095481248,-1943.62,0.00048219,31]
[313293621,1707095481258,-882.82,0.00048219,31]
[313293622,1707095481268,-500.0,0.00048219,31]
[313293623,1707095481278,-500.0,0.00048219,31]
[313293624,1707095481289,-500.0,0.00048219,31]
[313293625,1707095481299,-500.0,0.00048219,31]
[313293626,1707095481309,-633.54,0.00048219,31]
[313293627,1707095481319,-2280.46,0.00048219,31]
[313293628,1707095481329,-666.48,0.00048219,31]
[313293629,1707095481340,-1000.0,0.00048219,7]
[313293630,1707095481350,-787.28,0.00048219,31]
[313293631,1707095481360,-1000.0,0.00048219,7]
[313293632,1707095481370,-500.0,0.00048219,31]
[313293633,1707095481380,-303.52894632,0.00048219,31]
[313293634,1707095481391,-500.0,0.00048219,31]
[313293635,1707095481400,-500.0,0.00048219,31]
[313293636,1707095481412,-500.0,0.00048219,31]
[313293637,1707095481422,-1162.55,0.00048219,31]
[313293638,1707095481432,-2177.23,0.00048219,5]
[313293639,1707095481442,-500.0,0.00048219,31]
[313293640,1707095481456,-598.05,0.00048219,31]
[313293641,1707095481466,-500.0,0.00048219,31]
[313293642,1707095481477,-500.97,0.00048219,31]
[313293643,1707095481488,-500.0,0.00048219,31]
[313293644,1707095481499,-500.0,0.00048219,31]
[313293645,1707095481508,-776.5,0.00048219,31]
[313293646,1707095481518,-500.0,0.00048219,31]
[313293647,1707095481528,-500.0,0.00048219,21]
[313293648,1707095481537,-848.65452,0.0004823,5]
[313293649,1707095481548,-502.0,0.00048235,5]
[313293650,1707095481557,-15000.0,0.000483,120]
[313293651,1707095481566,-150.0,0.000483,19]
[313293652,1707095481576,-150.0,0.0004845,2]
[313293653,1707095481585,-15000.0,0.00048463,120]
[313293654,1707095481595,-33519.0,0.00048478,30]
[313293655,1707095481604,-6815.0,0.0004849,2]
[313293656,1707095481613,-4498.0,0.0004849,2]
[313293657,1707095481623,-4612.06915485,0.00048493,75]
[313293658,1707095481632,-1000.0,0.00048493,75]
[313293659,1707095481641,-500.0,0.00048493,21]
[313293660,1707095481650,-171.0205,0.00048498,53]
[313293661,1707095481659,-452.0,0.000485,2]
[313293662,1707095481669,-325.92542648,0.000485,120]
[313293663,1707095481678,-79983.15760178,0.000485,2]
[313293664,1707095481687,-5000.0,0.000485,45]
[313293665,1707095481794,-40372.31994161,0.0004851,7]
[313293666,1707095481803,-1918.0,0.0004852,2]
[313293667,1707095481813,-15147.19774555,0.0004855,6]
[313293668,1707095481822,-166.99392,0.00048552,4]
[313293669,1707095481832,-2000.0,0.00048584,75]
[313293670,1707095481841,-150.0,0.00048585,30]
[313293671,1707095481850,-150.0,0.00048585,30]
[313293672,1707095481859,-15000.0,0.00048625,120]
[313293673,1707095481868,-297.0,0.00048679,28]
[313293674,1707095481877,-162.13039223,0.00048685,120]
[313293675,1707095481886,-200.0,0.000487,28]
[313293676,1707095481895,-320.0,0.000487,39]
[313293677,1707095481904,-1726.0,0.000487,117]
[313293678,1707095481913,-1000.0,0.000487,2]
[313293679,1707095481922,-1176.1736658,0.000487,14]
[313293680,1707095481931,-155.0,0.00048748,4]
[313293681,1707095481940,-155.0,0.00048748,4]
[313293682,1707095481949,-155.42586713,0.00048748,4]
[313293683,1707095481959,-168.77995614,0.0004875,7]
[313293684,1707095481968,-202.39567241,0.0004875,30]
[313293685,1707095481977,-164.85941139,0.0004875,30]
[313293686,1707095481986,-853.35452032,0.0004875,30]
[313293687,1707095481995,-314.12953697,0.0004875,30]
[313293688,1707095482004,-742.37337654,0.0004875,30]
[313293689,1707095482013,-1078.4285362,0.0004875,30]
[313293690,1707095482022,-879.98931828,0.0004875,30]
[313293691,1707095482031,-275.5534777,0.0004875,30]
[313293692,1707095482040,-1062.13200123,0.0004875,30]
[313293693,1707095482049,-802.59054967,0.0004875,30]
[313293694,1707095482058,-754.45501521,0.0004875,30]
[313293695,1707095482068,-629.68036851,0.0004875,30]
[313293696,1707095482077,-552.47500469,0.0004875,30]
[313293697,1707095482086,-177.86756111,0.0004875,30]
[313293698,1707095482094,-375.30871583,0.0004875,30]
[313293699,1707095482106,-353.62692521,0.0004875,30]
[313293700,1707095482115,-410.56559275,0.0004875,30]
[313293701,1707095482124,-1044.01832962,0.0004875,30]
[313293702,1707095482133,-680.6886488,0.0004875,30]
[313293703,1707095482142,-293.4117005,0.0004875,30]
[313293704,1707095482152,-468.98623897,0.0004875,30]
[313293705,1707095482161,-1000.0,0.00048767,80]
[313293706,1707095482169,-500.0,0.00048767,21]
[313293707,1707095482178,-420.66,0.00048767,2]
[313293708,1707095482187,-420.66,0.00048767,2]
[313293709,1707095482196,-420.66,0.00048767,2]
[313293710,1707095482208,-420.66,0.00048767,2]
[313293711,1707095482217,-420.66,0.00048767,2]
[313293712,1707095482226,-407.11505208,0.0004877,3]
[313293713,1707095482235,-400.0,0.0004877,3]
[313293714,1707095482245,-15000.0,0.00048788,120]
[313293715,1707095482254,-7485.15785797,0.000488,10]
[313293716,1707095482263,-150.0,0.000488,20]
[313293717,1707095482272,-851.0,0.0004889,2]
[313293718,1707095482282,-300.0,0.000489,30]
[313293719,1707095482291,-300.0,0.000489,30]
[313293720,1707095482300,-300.0,0.000489,30]
[313293721,1707095482309,-662.0,0.000489,17]
[313293722,1707095482318,-500.0,0.00048924,7]
[313293723,1707095482327,-15000.0,0.0004895,120]
[313293724,1707095482336,-33519.0,0.00048953,30]
[313293725,1707095482346,-1208.0,0.00048958,30]
[313293726,1707095482355,-2603.0,0.00048978,45]
[313293727,1707095482364,-200.0,0.00048987,18]
[313293728,1707095482374,-200.0,0.00048987,23]
[313293729,1707095482383,-15610.0,0.0004899,2]
[313293730,1707095482392,-10294.0,0.0004899,2]
[313293731,1707095482402,-100000.0,0.00049,39]
[313293732,1707095482411,-12024.0,0.00049,7]
[313293733,1707095482420,-270.0,0.00049,3]
[313293734,1707095482430,-20293.95537778,0.00049,15]
[313293735,1707095482439,-1742.85262169,0.00049,2]
[313293736,1707095482448,-100063.14027233,0.00049,2]
[313293737,1707095482458,-1000.0,0.00049,14]
[313293738,1707095482467,-569.702117,0.00049,2]
[313293739,1707095482476,-225740.0,0.00049,10]
[313293740,1707095482485,-9630.69998509,0.00049,5]
[313293741,1707095482494,-10093.0,0.00049,7]
[313293742,1707095482504,-200000.0,0.00049,21]
[313293743,1707095482513,-236260.61085139,0.00049,7]
[313293744,1707095482726,-664.04328861,0.00049,7]
[313293745,1707095482737,-1714.17442697,0.00049,7]
[313293746,1707095482749,-10516.0016,0.00049,7]
[313293747,1707095482760,-494.33920324,0.00049,7]
[313293748,1707095482988,-250.54096614,0.00022998,2]
[313293749,1707095482999,-31708.61030665,0.00022998,2]
[313293750,1707095483018,-1055.9591323,0.00022998,2]
[313293751,1707095663669,4000.0,0.00028,120]
[313293759,1707096631777,-160.31492218,0.00022697,2]
[313293760,1707096631786,-4503.42146419,0.00022797,2]
[313293761,1707096631795,-767.7368,0.00022798,2]
[313293762,1707096631805,-1409.8073,0.00022798,2]
[313293763,1707096631814,-685.5176,0.00022798,2]
[313293764,1707096631824,-1277.437,0.00022798,2]
[313293765,1707096631833,-160.10539998,0.00022896,2]
[313293766,1707096631842,-267.95957472,0.00022896,2]
[313293767,1707096631851,-2323.6857,0.00022897,2]
[313293768,1707096631860,-99793.26512321,0.00022898,2]
[313293769,1707096631869,-158810.99138949,0.00022898,2]
[313293770,1707096631889,-530.26541467,0.00022898,2]
[313293771,1707096631919,-323.26186872,0.00022898,2]
[313293772,1707096631932,-6636.2791643,0.00022898,2]
[313293773,1707096631983,-280.378098,0.00022898,2]
[313293774,1707096632044,-3622.69292414,0.00022898,2]
[313293782,1707096637826,-8477.2,0.00022898,2]
[313293783,1707096638059,-4224.9,0.00022898,2]
[313293784,1707096638070,-927.952,0.00022898,2]
[313293785,1707096638081,-1076.31462604,0.00022898,2]
[313293786,1707096638092,-761.89216963,0.00022898,2]
[313293787,1707096638103,-365.80397817,0.00022898,2]
[313293789,1707096639815,-3828.6,0.00022898,2]
[313293790,1707096639894,-16038.03651772,0.00022898,2]
[313293830,1707096640400,-334.0405433,0.00022898,2]
[313293831,1707096640559,-1693.28928291,0.00022898,2]
[313293876,1707096642949,-1764.85377484,0.00022898,2]
[313293879,1707096642963,-1487.01374093,0.00022898,2]
[313293881,1707096643100,-277.48588947,0.00022898,2]
[313293891,1707096645852,-186.69951346,0.00022898,2]
[313293892,1707096646004,-14548.8755808,0.00022898,2]
[313293893,1707096646016,-1943.66,0.00022898,2]
[313293894,1707096646050,-495.58762091,0.00022898,2]
[313293914,1707096875548,155.59402305,0.00022,2]
[313293915,1707096886510,3201.52918485,0.00021883,2]
[313293916,1707097209109,168.93812898,0.00027,30]
[313293918,1707097347417,170.34189962,0.00027,30]
[313293919,1707097765748,263.62,0.00022214,2]
[313293951,1707097836217,181.7,0.0002791,120]
[313293954,1707097838100,-1376.64916931,0.00022696,2]
[313293955,1707097838109,-300.0,0.00022696,2]
[313293956,1707097838119,-3177.8357616,0.00022697,2]
[313293957,1707097838128,-100000.0,0.00022698,2]
[313293958,1707097838137,-409.1723,0.00022796,2]
[313293959,1707097838147,-99789.49532716,0.00022797,2]
[313293960,1707097838155,-532.051,0.00022797,2]
[313293961,1707097838165,-15363.30662126,0.00022798,2]
[313293962,1707097838320,-21313.89477358,0.00022798,2]
[313293963,1707097840547,-1187.14059828,0.00022798,2]
[313293964,1707097840728,-464.22122074,0.00022798,2]
[313293965,1707097840805,-529.82516471,0.00022798,2]
[313293966,1707097840816,-300.25019249,0.00022798,2]
[313293980,1707097843046,-1109.16614399,0.00022798,2]
[313293981,1707097843114,-385.726981,0.00022798,2]
[313293982,1707097843236,-1982.98337507,0.00022798,2]
[313294027,1707097978080,2542.26860928,0.00022498,2]
[313294028,1707097979047,4025.21363292,0.0002237,2]
[313294029,1707097980623,3201.52918485,0.00021692,2]
[313294030,1707097986010,308.9339467,0.00021692,2]
[313294031,1707097986749,156.45987005,0.00020336,2]
[313294032,1707097994630,163.34499265,0.00020336,2]
[313294033,1707097996779,198.3777386,0.00022369,4]
[313294034,1707097997032,455.41093407,0.0002237,2]
[313294035,1707098015564,1527.21830695,0.00022179,2]
[313294036,1707098015898,1527.21830695,0.00022399,2]
[313294037,1707098023681,166.07,0.00022356,2]
[313294038,1707098036966,750.0,0.00022265,2]
[313294039,1707098041292,267.67607464,0.00022356,2]
[313294042,1707098057290,353.59083482,0.00022356,2]
[313294043,1707098058754,752.0,0.0002168,2]
[313294044,1707098141213,250.0,0.00022186,2]
[313294045,1707098150029,1521.24950056,0.00022256,2]
[313294046,1707098175416,150.0,0.00022177,2]
[313294047,1707098189007,188.26,0.00022177,2]
[313294048,1707098189128,555.51,0.00022177,2]
[313294049,1707098204818,196.48,0.00022177,2]
[313294050,1707098227476,14489.51,0.0002207,2]
[313294051,1707098266460,169.18,0.00021948,2]
[313294052,1707098267594,169.23,0.00021948,2]
[313294053,1707098273270,1521.24950056,0.00022438,2]
[313294054,1707098273573,1521.24950056,0.00022499,2]
[313294055,1707098294029,9929.97,0.00022007,2]
[313294056,1707098294745,509.98,0.00022007,2]
[313294057,1707098308914,250.0,0.00022007,2]
[313294058,1707098358434,3424.0,0.00021369,2]
[313294059,1707098363349,2033.81488744,0.00022498,2]
[313294060,1707098379029,151.08,0.00022377,2]
[313294061,1707098385751,594.61,0.00021805,2]
[313294062,1707098423180,200.0,0.00021814,2]
[313294063,1707098434118,290.22,0.00019924,2]
[313294064,1707098434340,290.22,0.00022188,2]
[313294065,1707098468587,182.49,0.0002239,2]
[313294066,1707098494720,185.4,0.00021978,2]
[313294067,1707098508533,1627.05190996,0.00022497,2]
[313294068,1707098529686,24212.3243,0.00022497,2]
[313294069,1707098537045,328.66,0.00021831,2]
[313294070,1707098548770,10885.8,0.00021831,2]
[313294071,1707098566549,17933.203,0.00022497,2]
[313294072,1707098581135,250.0,0.00021852,2]
[313294073,1707098619901,177.96,0.00021926,10]
[313294074,1707098630104,23900.0,0.00022008,2]
[313294075,1707098649084,1000.0,0.00022072,2]
[313294076,1707098654146,1301.64152796,0.00022497,2]
[313294077,1707098658063,1350.2855,0.00022497,2]
[313294078,1707098682245,9061.76,0.00021862,2]
[313294079,1707098701696,2000.0,0.00021862,2]
[313294080,1707098722255,792.05,0.00021862,2]
[313294081,1707098726439,500.0,0.00021862,2]
[313294082,1707098765303,50840.5657,0.00022497,2]
[313294083,1707098798999,1041.31322236,0.00022497,2]
[313294084,1707098877033,154.43,0.00022022,2]
[313294085,1707098877233,154.43,0.0002215,2]
[313294086,1707098877463,154.43,0.00022277,2]
[313294087,1707098877678,154.43,0.00022405,2]
[313294088,1707098880602,284.45,0.00020328,2]
[313294089,1707098906310,2915.3596,0.00022497,2]
[313294090,1707098945094,833.05057788,0.00022497,2]
[313294091,1707098968958,332.33,0.00021804,2]
[313294092,1707099000043,164.45535426,0.00022487,2]
[313294113,1707099035406,-155.0,0.00022521,2]
[313294114,1707099035419,-1376.64916931,0.00022522,2]
[313294115,1707099035430,-154.43,0.00022532,2]
[313294116,1707099035442,-525.76793032,0.00022572,2]
[313294117,1707099035453,-833.05057788,0.00022572,2]
[313294118,1707099035465,-4547.43593806,0.00022587,2]
[313294119,1707099035476,-284.45,0.00022592,2]
[313294120,1707099035488,-233.69442467,0.00022595,2]
[313294121,1707099035499,-166.19911466,0.00022595,2]
[313294122,1707099035510,-160.4567046,0.00022595,2]
[313294123,1707099035523,-725.81689487,0.00022595,2]
[313294124,1707099035534,-441.44861914,0.00022595,2]
[313294125,1707099035546,-225.03781885,0.00022595,2]
[313294126,1707099035557,-193.86408536,0.00022595,2]
[313294127,1707099035568,-265.10120296,0.00022596,2]
[313294128,1707099035579,-6738.61773996,0.00022596,2]
[313294129,1707099035591,-1121.88273138,0.00022596,2]
[313294130,1707099035602,-366.27,0.00022596,2]
[313294131,1707099035614,-194554.44145622,0.00022597,2]
[313294132,1707099035625,-1634.23,0.00022597,2]
[313294133,1707099035636,-499.99,0.00022597,2]
[313294134,1707099035647,-1650.67,0.00022634,2]
[313294135,1707099035657,-833.05057788,0.00022647,2]
[313294136,1707099035668,-154.43,0.0002266,2]
[313294137,1707099035679,-7875.4565,0.00022697,2]
[313294138,1707099035689,-1000.0,0.00022697,2]
[313294139,1707099035701,-100000.0,0.00022697,2]
[313294140,1707099035712,-833.05057788,0.00022721,2]
[313294141,1707099035723,-154.43,0.00022787,2]
[313294142,1707099035733,-234.49388431,0.00022795,2]
[313294144,1707099035745,-172.33013708,0.00022795,2]
[313294146,1707099035756,-600.89284077,0.00022795,2]
[313294148,1707099035768,-286.81017001,0.00022795,2]
[313294149,1707099035779,-901.32370818,0.00022795,2]
[313294150,1707099035789,-155.77174141,0.00022795,2]
[313294151,1707099035800,-833.05057788,0.00022796,2]
[313294152,1707099035815,-417.65894021,0.00022796,2]
[313294153,1707099035825,-103670.48932873,0.00022797,2]
[313294154,1707099035845,-2232.62973941,0.00022797,2]
[313294155,1707099035859,-679.70803117,0.00022797,2]
[313294156,1707099035872,-1270.173871,0.00022797,2]
[313294157,1707099035885,-331.36246917,0.00022797,2]
[313294158,1707099035897,-352.82981682,0.00022797,2]
[313294159,1707099035916,-9706.37001802,0.00022797,2]
[313294160,1707099035934,-281.63740935,0.00022797,2]
[313294161,1707099035948,-266.1619309,0.00022797,2]
[313294162,1707099036186,-272.11001102,0.00022797,2]
[313294163,1707099036211,-500.99592957,0.00022797,2]
[313294170,1707099038222,-6176.7416622,0.00022797,2]
[313294171,1707099038327,-661.65906419,0.00022797,2]
[313294172,1707099038436,-3388.87506783,0.00022797,2]
[313294173,1707099038446,-1449.72,0.000228,2]
[313294174,1707099038455,-7473.82782723,0.00022896,2]
[313294175,1707099038465,-36930.5625481,0.00022896,2]
[313294176,1707099038474,-363.99559486,0.00022896,2]
[313294177,1707099038483,-2133.92438189,0.00022897,2]
[313294178,1707099038492,-167.51,0.00022898,2]
[313294179,1707099038500,-1776.03694531,0.000229,2]
[313294180,1707099038509,-3470.74062558,0.000229,2]
[313294181,1707099038518,-154.43,0.00022915,2]
[313294182,1707099038527,-155.0,0.00022997,2]
[313294183,1707099038536,-154.43,0.00023042,2]
[313294184,1707099038545,-154.43,0.0002317,2]
[313294185,1707099038553,-1521.24950056,0.00023174,2]
[313294186,1707099038562,-332.33,0.00023448,2]
[313294187,1707099038571,-172.06049825,0.000236,2]
[313294188,1707099038580,-160.8,0.00024384,2]
[313294189,1707099038589,-362.62,0.00024384,2]
[313294190,1707099038598,-250.0,0.00024658,2]
[313294191,1707099038607,-1000.0,0.00024831,2]
[313294192,1707099038616,-284.45,0.00024855,2]
[313294193,1707099038626,-610.74732588,0.00025,2]
[313294194,1707099038634,-1250.0,0.00025,3]
[313294195,1707099038643,-332.33,0.00025092,2]
[313294197,1707099038653,-150.0,0.00026079,2]
[313294198,1707099038663,-332.33,0.00026735,2]
[313294201,1707099038673,-200.0,0.00027,2]
[313294203,1707099038683,-1300.0,0.00027,3]
[313294204,1707099038692,-284.45,0.00027119,2]
[313294206,1707099038701,-1000.0,0.0002759,2]
[313294207,1707099038710,-603.94202869,0.00028,2]
[313294208,1707099038720,-332.33,0.00028379,2]
[313294209,1707099038729,-284.45,0.00029383,2]
[313294210,1707099038738,-155.0,0.000295,3]
[313294211,1707099038747,-5637.40464828,0.0003,2]
[313294212,1707099038756,-694.54802203,0.0003,2]
[313294213,1707099038765,-1189.19099254,0.0003,2]
[313294214,1707099038774,-155.0,0.0003,2]
[313294215,1707099038783,-811.42746898,0.0003,4]
[313294216,1707099038792,-4609.0,0.0003,30]
[313294217,1707099038801,-1000.0,0.0003,2]
[313294218,1707099038810,-500.0,0.0003,2]
[313294219,1707099038819,-332.33,0.00030023,2]
[313294220,1707099038828,-1000.0,0.00030349,2]
[313294221,1707099038837,-2747.0,0.000315,3]
[313294222,1707099038847,-24555.0,0.000315,3]
[313294223,1707099038856,-180.0,0.00031644,2]
[313294224,1707099038865,-284.45,0.00031647,2]
[313294225,1707099038874,-19118.78334927,0.000318,2]
[313294226,1707099038886,-38454.03853056,0.000318,2]
[313294235,1707099041452,-150.99,0.00024384,2]
[313294236,1707099041461,-1382.82672439,0.000318,2]
[313294237,1707099041561,-17359.03573202,0.000318,2]
[313294238,1707099041613,-1823.85605686,0.000318,2]
[313294241,1707099041625,-4204.89999999,0.000318,2]
[313294262,1707099043269,-50710.79329491,0.000318,2]
[313294263,1707099043279,-894.208,0.00031815,2]
[313294264,1707099043288,-181.7,0.00032562,120]
[313294265,1707099043297,-5374.74275441,0.000328,2]
[313294266,1707099043306,-1759.71,0.00032877,2]
[313294267,1707099043316,-376.19620612,0.00033,4]
[313294268,1707099043325,-1000.0,0.00033108,2]
[313294269,1707099043334,-284.45,0.00033911,2]
[313294270,1707099043343,-3673.83813624,0.00034,14]
[313294271,1707099043353,-515.55211238,0.00034,4]
[313294272,1707099043362,-568.13452131,0.00034642,2]
[313294273,1707099043372,-83158.8960549,0.00034732,6]
[313294274,1707099043381,-95773.26496139,0.00034742,10]
[313294275,1707099043390,-6731.94794045,0.00034742,10]
[313294276,1707099043399,-1520.71420107,0.00034742,10]
[313294277,1707099043408,-1820.85692823,0.00034742,10]
[313294278,1707099043417,-45263.13839543,0.00034742,10]
[313294279,1707099043426,-5894.32757557,0.00034742,10]
[313294280,1707099043435,-563.35135609,0.000349,2]
[313294281,1707099043445,-563.35135604,0.000349,2]
[313294282,1707099043454,-563.35135604,0.000349,2]
[313294283,1707099043463,-767.0,0.00034975,5]
[313294284,1707099043473,-155.0,0.00035,4]
[313294285,1707099043482,-317.67804571,0.00035,4]
[313294286,1707099043491,-450.0,0.00035,3]
[313294287,1707099043500,-362.62,0.00035616,2]
[313294288,1707099043509,-200.0,0.00035712,5]
[313294289,1707099043518,-151.14314798,0.0003591,5]
[313294290,1707099043527,-284.45,0.00036175,2]
[313294291,1707099043536,-181.7,0.00037213,120]
[313294293,1707099043545,-4463.0,0.00037511,2]
[313294295,1707099043554,-563.35135604,0.00037796,2]
[313294297,1707099043563,-66527.1168439,0.0003789,10]
[313294298,1707099043572,-223.85574899,0.00037897,2]
[313294299,1707099043581,-500.0,0.00037899,15]
[313294300,1707099043590,-500.0,0.00037899,15]
[313294301,1707099043599,-500.0,0.00037899,15]
[313294302,1707099043609,-500.0,0.00037899,15]
[313294303,1707099043617,-257.04448462,0.00037899,15]
[313294304,1707099043626,-500.0,0.000379,2]
[313294305,1707099043635,-145166.87393201,0.000379,2]
[313294323,1707099043754,-269.3890631,0.000379,2]
[313294326,1707099043775,-23289.8144382,0.000379,2]
[313294328,1707099043786,-47163.40050329,0.000379,2]
[313294329,1707099043797,-3054.54052727,0.000379,2]
[313294334,1707099046222,-21144.96600339,0.000379,2]
[313294335,1707099046278,-966.16924044,0.000379,2]
[313294336,1707099046290,-58782.17331098,0.000379,2]
[313294337,1707099046387,-444.1546217,0.000379,2]
[313294338,1707099046400,-2938.30643068,0.000379,2]
[313294339,1707099046443,-388.37127809,0.000379,2]
[313294340,1707099046455,-723.78559492,0.000379,2]
[313294341,1707099700471,5311.04509767,0.00028,120]
[313294342,1707099749860,500.0,0.00027,30]
[313294343,1707099749885,31390.0,0.00027,30]
[313294344,1707099811167,200.0,0.00027,2]
[313294345,1707099827166,200.0,0.00027,2]
[313294346,1707099845170,100.0,0.00027,2]
[313294348,1707100125983,500.0,0.000254,2]
[313294349,1707100139788,500.0,0.0002454,2]
[313294366,1707100232367,-155.0,0.00026999,2]
[313294367,1707100232377,-100.0,0.00027,2]
[313294368,1707100232386,-155.63710169,0.000295,3]
[313294369,1707100232395,-694.70392651,0.0003,2]
[313294370,1707100232404,-155.0,0.00031397,2]
[313294371,1707100232413,-150.0,0.00031398,2]
[313294372,1707100232422,-6983.28417973,0.00031399,3]
[313294373,1707100232431,-2611.0,0.000314,3]
[313294374,1707100232439,-22132.0,0.000314,3]
[313294375,1707100232449,-157.5926148,0.000329,2]
[313294376,1707100232458,-270.59065052,0.00033,4]
[313294377,1707100232467,-1836.67,0.00033,2]
[313294378,1707100232477,-293.57,0.00033,2]
[313294379,1707100232486,-210.43,0.00034034,2]
[313294380,1707100232495,-154.0,0.00034538,2]
[313294381,1707100232504,-21566.91410674,0.00034732,2]
[313294382,1707100232514,-3095.88,0.00034732,2]
[313294383,1707100232527,-1244.22070997,0.00034742,10]
[313294384,1707100232536,-1270.96630254,0.00034742,10]
[313294385,1707100232546,-20368.41227794,0.00034742,10]
[313294386,1707100232555,-23880.0,0.00035266,2]
[313294387,1707100232565,-235.51,0.00035424,2]
[313294388,1707100232574,-250.0,0.00035573,2]
[313294389,1707100232583,-241.74,0.00035604,2]
[313294390,1707100232593,-1000.0,0.00035636,2]
[313294391,1707100232604,-234.47,0.0003566,2]
[313294392,1707100232614,-205.54,0.00035672,2]
[313294393,1707100232623,-150.0,0.00035829,2]
[313294394,1707100232633,-155.96,0.00036106,2]
[313294395,1707100232642,-1048.92395298,0.00036122,2]
[313294396,1707100232652,-181.7,0.00036142,120]
[313294397,1707100232661,-173.54,0.00036182,2]
[313294398,1707100232670,-160.8,0.00036271,2]
[313294399,1707100232680,-210.43,0.00036298,2]
[313294400,1707100232689,-421.67831689,0.00036966,4]
[313294403,1707100232698,-26214.0212,0.00036967,2]
[313294406,1707100232707,-499.99,0.00037066,2]
[313294410,1707100232723,-171.0205,0.00037098,10]
[313294413,1707100232738,-427.45,0.00037278,2]
[313294415,1707100232748,-171.0205,0.00037298,11]
[313294417,1707100232757,-7572.42,0.00037298,2]
[313294419,1707100232767,-205.54,0.00037316,2]
[313294421,1707100232776,-171.0205,0.00037398,12]
[313294423,1707100232785,-157.59261479,0.00037425,2]
[313294425,1707100232795,-171.0205,0.00037448,14]
[313294427,1707100232804,-162.0205,0.00037498,10]
[313294429,1707100232813,-9792.5974,0.00037499,2]
[313294431,1707100232822,-151.14314891,0.00037521,2]
[313294433,1707100232832,-403.3249,0.00037599,2]
[313294435,1707100232841,-245000.0,0.00037599,2]
[313294437,1707100232850,-22822.4408,0.00037599,2]
[313294439,1707100232859,-212.0,0.00037639,2]
[313294441,1707100232868,-209.0,0.00037639,2]
[313294443,1707100232878,-201.56684041,0.00037664,2]
[313294445,1707100232887,-83500.6504,0.00037699,2]
[313294447,1707100232896,-4508.1207,0.00037699,2]
[313294449,1707100232905,-1000.0,0.00037699,15]
[313294451,1707100232914,-1922.57512158,0.000377,8]
[313294453,1707100232923,-5510.75186079,0.00037764,4]
[313294454,1707100232933,-244.33849163,0.00037789,2]
[313294455,1707100232942,-4502.51531173,0.00037798,4]
[313294456,1707100232951,-563.35135604,0.00037798,2]
[313294457,1707100232960,-70569.54822399,0.00037799,2]
[313294458,1707100232974,-1501.01740747,0.00037799,2]